bitfinex/quotes_BTCUSD_20220207
["timestamp","ask_amount","ask_price","bid_price","bid_amount"]
[1644237172766,0.02906,42570.0,42569.0,0.327158]
[1644237173170,0.02871511,42570.0,42569.0,0.327158]
[1644237173869,0.02871511,42570.0,42569.0,0.674458]
[1644237174068,0.1,42581.0,42569.0,0.674458]
[1644237174269,0.1,42581.0,42577.0,0.00051425]
[1644237174469,0.1,42581.0,42577.0,0.04781425]
[1644237174912,0.59479729,42586.0,42580.0,0.00051425]
[1644237175110,0.59479729,42586.0,42580.0,0.21990069]
[1644237175310,0.64428304,42586.0,42580.0,0.21990069]
[1644237175509,0.64428304,42586.0,42583.0,0.00051425]
[1644237175510,0.59479729,42586.0,42583.0,0.00051425]
[1644237175712,0.00065244,42585.0,42580.0,0.21990069]
[1644237175909,0.00065244,42585.0,42577.0,0.0473]
[1644237175910,0.00065244,42585.0,42581.0,0.24978813]
[1644237176209,0.00065244,42585.0,42581.0,0.00051425]
[1644237176612,0.59479729,42586.0,42581.0,0.00051425]
[1644237176809,0.00065244,42585.0,42581.0,0.00051425]
[1644237177210,0.05940044,42585.0,42581.0,0.00051425]
[1644237177410,0.00065244,42585.0,42584.0,0.00051425]
[1644237177911,0.59479729,42586.0,42584.0,0.00051425]
[1644237178111,0.59479729,42586.0,42584.0,0.04781425]
[1644237178566,0.59479729,42586.0,42585.0,0.06347014]
[1644237178758,0.59479729,42586.0,42584.0,0.04801887]
[1644237178957,0.59479729,42586.0,42584.0,0.04781425]
[1644237181162,0.37664375,42585.0,42580.0,0.00020462]
[1644237181362,0.37664375,42585.0,42570.0,0.30122035]
[1644237181365,0.08611504,42582.0,42579.0,0.00020462]
[1644237181561,0.08611504,42582.0,42573.0,0.00051425]
[1644237181562,0.04948575,42581.0,42573.0,0.00051425]
[1644237181761,0.04948575,42581.0,42577.0,0.00051425]
[1644237182160,0.058757,42582.0,42577.0,0.22252504]
[1644237182417,0.00180737,42585.0,42578.0,0.327158]
[1644237182617,0.00180737,42585.0,42578.0,0.32736262]
[1644237182818,0.00115452,42585.0,42578.0,0.32736262]
[1644237183016,0.00021647,42584.0,42578.0,0.32736262]
[1644237183217,0.05896647,42584.0,42578.0,0.32736262]
[1644237183622,0.0665134,42583.0,42578.0,0.00020462]
[1644237184021,0.05875,42584.0,42578.0,0.00020462]
[1644237184220,0.00021647,42583.0,42577.0,0.00051425]
[1644237184420,0.00021647,42583.0,42577.0,0.00071887]
[1644237184619,0.00021647,42583.0,42577.0,0.20201282]
[1644237184820,0.00021647,42583.0,42578.0,0.327158]
[1644237185021,0.00021647,42583.0,42578.0,0.32736262]
[1644237185222,0.05875,42584.0,42578.0,0.32736262]
[1644237185421,0.00065344,42583.0,42578.0,0.32736262]
[1644237186262,0.05875,42584.0,42581.0,0.00051425]
[1644237186460,0.04948575,42582.0,42577.0,0.00020462]
[1644237186662,0.10825375,42578.0,42575.0,0.00020462]
[1644237186861,0.10825375,42578.0,42574.0,0.02218558]
[1644237187061,0.04948575,42575.0,42574.0,0.02198096]
[1644237187262,0.12126498,42575.0,42574.0,0.02198096]
[1644237187462,0.04948575,42575.0,42574.0,0.02198096]
[1644237187668,0.058768,42578.0,42574.0,0.02198096]
[1644237188263,0.058768,42578.0,42572.0,0.00020462]
[1644237188464,0.058768,42578.0,42575.0,0.00051425]
[1644237188665,0.1,42581.0,42575.0,0.00051425]
[1644237188867,0.1,42581.0,42575.0,0.30006901]
[1644237189065,0.1,42581.0,42575.0,0.00071887]
[1644237189266,0.058752,42582.0,42575.0,0.00071887]
[1644237190108,0.00065387,42581.0,42575.0,0.00071887]
[1644237190809,0.00065387,42581.0,42575.0,0.00020462]
[1644237191009,0.00065387,42581.0,42574.0,0.00020462]
[1644237191210,0.058752,42582.0,42573.0,0.1934161]
[1644237191211,0.04948575,42578.0,42573.0,0.1934161]
[1644237191415,0.058761,42578.0,42573.0,0.1934161]
[1644237191609,0.058761,42578.0,42573.0,0.00020462]
[1644237191810,0.058761,42578.0,42572.0,0.00051425]
[1644237192009,0.058761,42578.0,42565.0,0.57128522]
[1644237192010,0.11294233,42575.0,42573.0,0.00020462]
[1644237192211,0.11294233,42575.0,42568.0,0.02236956]
[1644237192410,0.11294233,42575.0,42569.0,0.327158]
[1644237192610,0.11294233,42575.0,42569.0,0.00020462]
[1644237193010,0.058773,42573.0,42569.0,0.00020462]
[1644237193211,0.058773,42573.0,42568.0,0.02185531]
[1644237193212,0.04948575,42570.0,42568.0,0.02185531]
[1644237193662,0.327158,42569.0,42568.0,0.02185531]
[1644237194067,0.69794616,42569.0,42568.0,0.02185531]
[1644237194261,0.80139737,42569.0,42562.0,0.26824026]
[1644237194461,0.80139737,42569.0,42560.0,0.02133306]
[1644237194462,0.04948575,42565.0,42560.0,0.02133306]
[1644237194661,0.04948575,42565.0,42561.0,0.00020462]
[1644237194861,0.058784,42563.0,42560.0,0.02133306]
[1644237195361,0.058784,42563.0,42561.0,0.20936598]
[1644237196461,0.1,42567.0,42561.0,0.20936598]
[1644237196664,0.1,42567.0,42561.0,0.20929135]
[1644237196862,0.1,42567.0,42565.0,0.00051425]
[1644237197061,0.02004469,42572.0,42565.0,0.00051425]
[1644237197310,0.02004469,42572.0,42565.0,0.07275413]
[1644237197512,0.02004469,42572.0,42566.0,0.27521508]
[1644237197715,0.02004469,42572.0,42566.0,0.2754197]
[1644237198115,0.02004469,42572.0,42570.0,0.20978319]
[1644237198313,0.04948575,42575.0,42570.0,0.20978319]
[1644237198513,0.327158,42574.0,42571.0,0.00051425]
[1644237198716,0.16902952,42580.0,42571.0,0.00071887]
[1644237198913,0.01954377,42580.0,42575.0,0.00051425]
[1644237199614,0.01954377,42580.0,42577.0,0.20590851]
[1644237199615,0.00031899,42579.0,42577.0,0.20590851]
[1644237201067,0.00031899,42579.0,42576.0,0.00020462]
[1644237201260,0.03973127,42581.0,42575.0,0.00051425]
[1644237201658,0.03973127,42581.0,42574.0,0.00020462]
[1644237201861,0.03973127,42581.0,42575.0,0.00051425]
[1644237202058,0.03973127,42581.0,42577.0,0.20163462]
[1644237203661,0.20624872,42582.0,42577.0,0.20163462]
[1644237204262,0.058758,42581.0,42577.0,0.20163462]
[1644237204465,0.058758,42581.0,42577.0,0.10163462]
[1644237205113,0.28459208,42588.0,42577.0,0.10163462]
[1644237205114,0.22473025,42596.0,42581.0,0.75]
[1644237205313,0.01,42599.0,42593.0,0.04189626]
[1644237205514,0.14199876,42601.0,42597.0,0.75]
[1644237205713,0.01,42609.0,42602.0,0.75]
[1644237205912,0.04076,42617.0,42608.0,0.36905426]
[1644237206114,0.04076,42617.0,42616.0,0.24516939]
[1644237206312,0.04076,42617.0,42616.0,0.57232739]
[1644237206710,0.04076,42617.0,42612.0,0.04189626]
[1644237206913,0.00810374,42615.0,42605.0,0.04189626]
[1644237207218,0.04076,42617.0,42605.0,0.04189626]
[1644237207219,0.00810374,42610.0,42606.0,0.3]
[1644237207413,0.2888602,42616.0,42607.0,0.327158]
[1644237207414,0.00810374,42616.0,42607.0,0.327158]
[1644237207612,0.04076,42617.0,42612.0,0.24156536]
[1644237208011,0.00810374,42616.0,42612.0,0.24156536]
[1644237208212,0.04097679,42617.0,42612.0,0.24156536]
[1644237209063,0.04076,42617.0,42612.0,0.24156536]
[1644237209263,0.327158,42616.0,42612.0,0.24156536]
[1644237209962,0.10012948,42617.0,42612.0,0.24156536]
[1644237210164,0.10012948,42617.0,42609.0,0.06429336]
[1644237210165,0.327158,42616.0,42609.0,0.06429336]
[1644237210364,0.099475,42617.0,42609.0,0.06429336]
[1644237210562,0.10012948,42617.0,42609.0,0.06429336]
[1644237211063,0.33131068,42612.0,42607.0,0.04189626]
[1644237211265,0.00810374,42615.0,42607.0,0.23402906]
[1644237211465,0.00104773,42616.0,42608.0,0.24089097]
[1644237211867,0.00065451,42613.0,42608.0,0.24089097]
[1644237212165,0.00065451,42613.0,42609.0,0.11885593]
[1644237212415,0.00065451,42613.0,42610.0,0.327158]
[1644237212611,0.31752434,42613.0,42610.0,0.327158]
[1644237212813,0.31686983,42613.0,42609.0,0.04189626]
[1644237213211,0.31686983,42613.0,42612.0,0.04189626]
[1644237213411,0.31686983,42613.0,42607.0,0.2421328]
[1644237213612,0.31686983,42613.0,42608.0,0.07664304]
[1644237214215,0.31701435,42613.0,42608.0,0.07664304]
[1644237214414,0.31701435,42613.0,42612.0,0.04189626]
[1644237215216,0.31635983,42613.0,42608.0,0.1185393]
[1644237215414,0.31635983,42613.0,42608.0,0.04189626]
[1644237215816,0.31635983,42613.0,42612.0,0.04189626]
[1644237216070,0.31635983,42613.0,42607.0,0.28402906]
[1644237216263,0.32446357,42613.0,42607.0,0.28402906]
[1644237216462,0.0010429,42612.0,42607.0,0.28402906]
[1644237216761,0.0012592,42612.0,42608.0,0.327158]
[1644237217162,0.0012592,42612.0,42607.0,0.23402906]
[1644237217568,0.0010429,42612.0,42607.0,0.23402906]
[1644237217764,0.0012592,42612.0,42607.0,0.1921328]
[1644237217964,0.0012592,42612.0,42604.0,0.13127673]
[1644237217965,0.1187062,42612.0,42604.0,0.13127673]
[1644237218564,0.0012592,42612.0,42604.0,0.13127673]
[1644237218764,0.0010429,42612.0,42604.0,0.13127673]
[1644237218964,0.0002163,42610.0,42604.0,0.13127673]
[1644237219163,0.0002163,42610.0,42608.0,0.04189626]
[1644237219809,0.0002163,42610.0,42607.0,0.327158]
[1644237220010,0.0010429,42612.0,42607.0,0.327158]
[1644237220213,0.00065511,42611.0,42606.0,0.21640449]
[1644237221211,0.0010429,42612.0,42606.0,0.21640449]
[1644237221412,0.0016968,42611.0,42606.0,0.21640449]
[1644237222413,0.00104169,42611.0,42606.0,0.21640449]
[1644237222613,0.0016968,42611.0,42606.0,0.21640449]
[1644237222918,0.0016968,42611.0,42608.0,0.04189626]
[1644237223565,0.00810374,42613.0,42608.0,0.04189626]
[1644237223760,0.0006551,42612.0,42608.0,0.04189626]
[1644237224161,0.0006551,42612.0,42607.0,0.327158]
[1644237224361,0.0006551,42612.0,42608.0,0.04189626]
[1644237224761,0.00810374,42613.0,42606.0,0.21640449]
[1644237224962,0.058715,42615.0,42605.0,0.26167976]
[1644237225363,0.05,42612.0,42605.0,0.26167976]
[1644237225763,0.05,42612.0,42609.0,0.07326308]
[1644237225962,0.2643688,42616.0,42609.0,0.07326308]
[1644237225963,0.1,42616.0,42609.0,0.07326308]
[1644237226163,0.1,42616.0,42610.0,0.26636824]
[1644237226364,0.1,42616.0,42610.0,0.28226602]
[1644237226664,0.01,42619.0,42610.0,0.28226602]
[1644237226665,0.01,42619.0,42611.0,0.05869525]
[1644237226863,0.01,42619.0,42618.0,0.26362166]
[1644237227064,0.01,42619.0,42612.0,0.29484969]
[1644237227311,0.01,42619.0,42612.0,0.34484969]
[1644237227512,0.00284,42619.0,42612.0,0.34484969]
[1644237228216,0.00284,42619.0,42614.0,0.327158]
[1644237228217,0.17409039,42618.0,42614.0,0.327158]
[1644237228415,0.17409039,42618.0,42610.0,0.02157251]
[1644237228416,0.05,42615.0,42610.0,0.02157251]
[1644237228614,0.17409039,42618.0,42610.0,0.02157251]
[1644237228615,0.05,42612.0,42610.0,0.02157251]
[1644237230416,0.167435,42612.0,42609.0,0.21644199]
[1644237231264,0.05,42610.0,42609.0,0.21644199]
[1644237235713,0.117435,42612.0,42609.0,0.21644199]
[1644237235914,0.00065508,42613.0,42610.0,0.327158]
[1644237236715,0.02452772,42619.0,42611.0,0.08990603]
[1644237236915,0.117404,42617.0,42616.0,0.2015098]
[1644237238118,0.117404,42617.0,42613.0,0.23506383]
[1644237238574,0.117404,42617.0,42614.0,0.327158]
[1644237239364,0.117404,42617.0,42616.0,0.327158]
[1644237240167,0.117404,42617.0,42616.0,0.53158293]
[1644237241168,0.0621966,42619.0,42616.0,0.53158293]
[1644237241372,0.00030042,42623.0,42617.0,1.077158]
[1644237241568,0.01987044,42626.0,42617.0,1.077158]
[1644237241569,0.00030042,42622.0,42617.0,1.077158]
[1644237241766,0.00030042,42624.0,42617.0,1.077158]
[1644237241967,0.058683,42624.0,42617.0,1.077158]
[1644237242166,0.058683,42624.0,42623.0,0.07040281]
[1644237242422,0.00030042,42626.0,42623.0,0.39756081]
[1644237242621,0.11766642,42628.0,42624.0,0.327158]
[1644237242921,0.11766642,42628.0,42623.0,0.26402698]
[1644237242922,0.1226568,42627.0,42623.0,0.26402698]
[1644237243119,0.12257219,42627.0,42623.0,0.26402698]
[1644237243320,0.00051623,42627.0,42623.0,0.19362417]
[1644237243521,0.00051623,42627.0,42621.0,0.5]
[1644237243522,0.05919623,42627.0,42621.0,0.5]
[1644237243925,0.10919623,42627.0,42621.0,0.5]
[1644237244120,0.327158,42626.0,42621.0,0.5]
[1644237244321,0.05,42622.0,42621.0,0.5]
[1644237244524,0.05,42622.0,42617.0,0.2517478]
[1644237244525,0.27520047,42622.0,42617.0,0.2517478]
[1644237244725,0.05,42618.0,42617.0,0.2517478]
[1644237244921,0.35338521,42618.0,42617.0,0.2517478]
[1644237245122,0.4978237,42618.0,42617.0,0.2517478]
[1644237246468,0.8836977,42618.0,42617.0,0.23]
[1644237247676,0.8249817,42618.0,42617.0,0.23]
[1644237249818,0.8249817,42618.0,42596.0,0.11741704]
[1644237249819,0.75,42617.0,42596.0,0.11741704]
[1644237250019,0.75,42617.0,42590.0,0.1139]
[1644237250020,0.40039073,42607.0,42590.0,0.1139]
[1644237250225,0.02099896,42609.0,42587.0,0.3828]
[1644237250226,0.40039073,42602.0,42587.0,0.3828]
[1644237250422,0.05,42594.0,42586.0,0.327158]
[1644237250820,0.05,42594.0,42588.0,0.19768643]
[1644237250821,0.20088049,42593.0,42588.0,0.19768643]
[1644237251421,0.25962249,42593.0,42589.0,0.327158]
[1644237251625,0.058742,42593.0,42588.0,0.1981276]
[1644237252024,0.02121755,42593.0,42589.0,0.17773846]
[1644237252219,0.33745891,42600.0,42589.0,0.17773846]
[1644237252220,0.54244947,42607.0,42590.0,0.327158]
[1644237252421,0.05,42608.0,42590.0,0.327158]
[1644237252422,0.40039073,42606.0,42596.0,0.24842302]
[1644237252621,0.176195,42601.0,42597.0,0.3]
[1644237253119,0.176195,42601.0,42596.0,0.24842302]
[1644237253763,0.176195,42601.0,42596.0,0.2490495]
[1644237254364,0.176195,42601.0,42596.0,0.32187142]
[1644237254764,0.176195,42601.0,42596.0,0.32124494]
[1644237254963,0.176195,42601.0,42596.0,0.55187142]
[1644237256067,0.176195,42601.0,42596.0,0.55124494]
[1644237256364,0.176195,42601.0,42596.0,0.55187142]
[1644237256767,0.00103395,42600.0,42596.0,0.4790495]
[1644237256966,0.05975795,42600.0,42596.0,0.4790495]
[1644237257164,0.05975795,42600.0,42596.0,0.47842302]
[1644237257421,0.00103395,42600.0,42598.0,0.327158]
[1644237257619,0.0203468,42609.0,42600.0,1.077158]
[1644237257818,0.0203468,42609.0,42601.0,0.0433]
[1644237258119,0.00061004,42618.0,42603.0,0.75]
[1644237258322,0.00061004,42618.0,42614.0,0.26657375]
[1644237258518,1.4213425,42624.0,42614.0,0.26657375]
[1644237258519,0.00030042,42621.0,42615.0,0.55]
[1644237258719,1.02095177,42624.0,42616.0,0.327158]
[1644237258720,0.02056299,42618.0,42616.0,0.327158]
[1644237258918,0.02056299,42618.0,42615.0,0.9]
[1644237259720,0.02056299,42618.0,42616.0,0.19795425]
[1644237259721,0.01995289,42618.0,42616.0,0.19795425]
[1644237259921,0.01995289,42618.0,42617.0,0.27345827]
[1644237260321,0.01995289,42618.0,42617.0,0.61279583]
[1644237262566,0.0006112,42620.0,42617.0,0.61013718]
[1644237262768,0.0006112,42620.0,42618.0,0.05868516]
[1644237262966,0.0006112,42620.0,42619.0,0.26442334]
[1644237263167,1.02095176,42622.0,42619.0,0.26442334]
[1644237263168,1.02125218,42622.0,42619.0,0.26442334]
[1644237263365,1.02095176,42622.0,42619.0,0.26442334]
[1644237263567,1.02156294,42622.0,42619.0,0.26442334]
[1644237264167,1.02156294,42622.0,42619.0,0.31442334]
[1644237264367,1.02095176,42622.0,42619.0,0.31442334]
[1644237265317,1.02095176,42622.0,42619.0,0.60310532]
[1644237266616,2.5834916,42622.0,42619.0,0.60310532]
[1644237266817,0.78126992,42621.0,42619.0,0.60310532]
[1644237267017,0.00030042,42622.0,42620.0,0.2750286]
[1644237267220,0.00091152,42623.0,42621.0,0.377158]
[1644237267418,0.0006111,42623.0,42622.0,0.26360232]
[1644237267618,0.0006111,42623.0,42622.0,0.59076032]
[1644237268118,0.00030042,42627.0,42622.0,0.26360232]
[1644237268319,0.24894769,42628.0,42622.0,0.26360232]
[1644237268320,0.24924811,42628.0,42622.0,0.26360232]
[1644237268581,0.00030042,42627.0,42622.0,0.31360232]
[1644237268775,0.24924811,42628.0,42624.0,0.24379668]
[1644237269075,0.00030042,42627.0,42625.0,0.27278156]
[1644237269276,0.24924811,42628.0,42626.0,0.1948861]
[1644237269476,0.24924811,42628.0,42627.0,0.27382135]
[1644237269477,0.19087674,42628.0,42627.0,0.27382135]
[1644237270576,0.19026569,42628.0,42627.0,0.27382135]
[1644237275423,0.01,42629.0,42627.0,0.27382135]
[1644237280024,0.01,42629.0,42620.0,0.3013766]
[1644237280226,0.01030042,42629.0,42620.0,0.3013766]
[1644237280423,0.01030042,42629.0,42620.0,0.42316842]
[1644237280624,0.01030042,42629.0,42623.0,0.2124972]
[1644237280925,0.01030042,42629.0,42624.0,0.53785685]
[1644237281524,0.01061104,42629.0,42624.0,0.53785685]
[1644237281725,0.01061104,42629.0,42625.0,0.327158]
[1644237281926,0.01061104,42629.0,42625.0,0.327082]
[1644237282526,0.01061104,42629.0,42626.0,0.327158]
[1644237282527,0.01,42629.0,42626.0,0.327158]
[1644237282729,0.01061104,42629.0,42627.0,0.24582362]
[1644237283866,0.01,42629.0,42627.0,0.24582362]
[1644237288416,0.01,42629.0,42627.0,0.29582362]
[1644237288618,0.01,42629.0,42628.0,0.2426929]
[1644237288816,0.01,42629.0,42625.0,0.27194915]
[1644237289018,0.01030042,42629.0,42625.0,0.27194915]
[1644237289318,0.01030042,42629.0,42626.0,0.376768]
[1644237289518,0.01,42629.0,42627.0,0.08617521]
[1644237289722,0.01,42629.0,42628.0,0.626768]
[1644237289919,0.00061103,42630.0,42628.0,0.773768]
[1644237290120,0.00061103,42630.0,42629.0,0.60076684]
[1644237290320,0.00061103,42630.0,42629.0,1.17453484]
[1644237290719,0.00061103,42630.0,42629.0,1.12453484]
[1644237290923,0.00030042,42635.0,42631.0,0.326768]
[1644237291177,0.00086458,42638.0,42633.0,0.326768]
[1644237291377,0.00030155,42637.0,42634.0,0.373768]
[1644237291577,0.00086458,42638.0,42635.0,0.3]
[1644237291776,0.00116613,42638.0,42636.0,0.373768]
[1644237291976,0.44141022,42648.0,42637.0,0.87845206]
[1644237291977,0.00030155,42646.0,42637.0,0.87845206]
[1644237292178,0.058662,42646.0,42638.0,0.373768]
[1644237292377,0.00021618,42639.0,42638.0,0.473768]
[1644237292577,0.00021618,42639.0,42638.0,0.77471982]
[1644237293277,0.00030155,42645.0,42638.0,0.77471982]
[1644237293476,0.00065632,42641.0,42640.0,0.326768]
[1644237293677,0.00065632,42641.0,42640.0,0.68128379]
[1644237293876,0.00065632,42641.0,42640.0,0.73128379]
[1644237294377,0.00030155,42646.0,42640.0,0.73128379]
[1644237294577,0.00030155,42643.0,42642.0,0.24802117]
[1644237294817,0.0006563,42643.0,42642.0,0.89456851]
[1644237295422,0.0006563,42643.0,42642.0,0.94456851]
[1644237295620,0.00030155,42647.0,42642.0,0.94456851]
[1644237295919,0.00065627,42645.0,42644.0,0.22399603]
[1644237296119,0.00065627,42645.0,42644.0,0.9274032]
[1644237296318,0.00065627,42645.0,42644.0,1.0274032]
[1644237296518,0.00065627,42645.0,42644.0,0.74776403]
[1644237296919,0.00030155,42647.0,42644.0,0.74776403]
[1644237297222,0.00021621,42647.0,42646.0,0.376768]
[1644237298021,0.06030155,42649.0,42646.0,0.376768]
[1644237298221,0.06030155,42649.0,42646.0,0.05]
[1644237298222,0.06065681,42649.0,42646.0,0.05]
[1644237298420,0.01065681,42649.0,42646.0,0.28]
[1644237298671,0.01065681,42649.0,42647.0,0.373768]
[1644237299271,0.01,42649.0,42647.0,0.373768]
[1644237299872,0.00095834,42650.0,42647.0,0.373768]
[1644237300074,0.00065679,42650.0,42649.0,0.56737007]
[1644237300276,0.00065679,42650.0,42649.0,0.61437007]
[1644237300474,0.00030155,42653.0,42649.0,0.373768]
[1644237300677,0.00065677,42652.0,42649.0,0.047]
[1644237300872,0.00065677,42652.0,42646.0,0.28]
[1644237301074,0.05,42648.0,42647.0,0.326768]
[1644237301273,0.058653,42651.0,42647.0,0.326768]
[1644237301476,0.05,42648.0,42647.0,0.326768]
[1644237301673,0.05,42648.0,42647.0,0.41365888]
[1644237301873,0.05,42648.0,42647.0,0.28996532]
[1644237302321,0.00030155,42650.0,42647.0,0.28996532]
[1644237302521,0.00065678,42651.0,42647.0,0.058651]
[1644237302720,0.00095833,42651.0,42648.0,0.326651]
[1644237302921,0.05,42653.0,42648.0,0.376651]
[1644237302922,0.00030155,42652.0,42648.0,0.376651]
[1644237303120,0.00065678,42651.0,42648.0,0.376651]
[1644237304122,0.00030155,42652.0,42647.0,0.058651]
[1644237304323,0.00065677,42652.0,42647.0,0.058651]
[1644237304523,0.00065677,42652.0,42647.0,0.07815277]
[1644237304524,0.00095832,42652.0,42647.0,0.07815277]
[1644237304923,0.00095832,42652.0,42648.0,0.326651]
[1644237305324,0.00030155,42652.0,42648.0,0.326651]
[1644237305525,0.00065677,42652.0,42648.0,0.326651]
[1644237305725,0.05,42649.0,42648.0,0.326651]
[1644237306374,0.05,42649.0,42647.0,0.01950177]
[1644237306773,0.05896055,42650.0,42646.0,0.23]
[1644237306974,0.05896055,42650.0,42647.0,0.326651]
[1644237307174,0.0021366,42651.0,42647.0,0.326651]
[1644237307775,0.00147982,42651.0,42647.0,0.326651]
[1644237307976,0.0021366,42651.0,42647.0,0.326651]
[1644237308578,0.0021366,42651.0,42647.0,0.34495101]
[1644237308975,0.00147982,42651.0,42647.0,0.34495101]
[1644237309177,0.0021366,42651.0,42647.0,0.34495101]
[1644237309377,0.00183505,42651.0,42647.0,0.326651]
[1644237309579,0.05,42649.0,42647.0,0.326651]
[1644237309822,0.00030155,42650.0,42647.0,0.326651]
[1644237310023,0.05,42649.0,42647.0,0.326651]
[1644237311425,0.05,42649.0,42647.0,0.321281]
[1644237312224,0.00233138,42650.0,42647.0,0.321281]
[1644237312426,0.00137304,42650.0,42647.0,0.321281]
[1644237313583,0.00137304,42650.0,42649.0,0.326651]
[1644237314376,0.00137304,42650.0,42649.0,0.40150476]
[1644237314577,0.00137304,42650.0,42649.0,0.57157806]
[1644237315178,0.00137304,42650.0,42649.0,0.77157806]
[1644237316480,0.00137304,42650.0,42649.0,0.81857806]
[1644237316680,0.00137304,42650.0,42649.0,0.89110442]
[1644237318924,0.00137304,42650.0,42649.0,0.88396158]
[1644237321574,0.00137304,42650.0,42649.0,0.83696158]
[1644237322174,0.05,42663.0,42652.0,0.058629]
[1644237322373,0.4146,42666.0,42652.0,0.058629]
[1644237322374,0.00262899,42658.0,42654.0,0.646126]
[1644237322575,0.00262899,42658.0,42655.0,0.373654]
[1644237322773,0.00293068,42658.0,42655.0,0.523654]
[1644237322973,0.00262899,42658.0,42656.0,0.326654]
[1644237323179,0.00262899,42658.0,42657.0,1.16530537]
[1644237323374,0.01030169,42659.0,42658.0,0.385281]
[1644237323375,0.01,42659.0,42658.0,0.385281]
[1644237323574,0.01065727,42659.0,42658.0,0.432281]
[1644237323774,0.01065727,42659.0,42658.0,0.532281]
[1644237324378,0.01065727,42659.0,42658.0,0.80111623]
[1644237324675,0.01,42659.0,42658.0,0.80111623]
[1644237325323,0.00095894,42661.0,42659.0,0.75]
[1644237325522,0.00095894,42661.0,42660.0,0.673654]
[1644237325523,0.00065725,42661.0,42660.0,0.673654]
[1644237325821,0.00030169,42665.0,42662.0,0.385276]
[1644237326022,0.04,42666.0,42664.0,0.326654]
[1644237326023,0.04030169,42666.0,42664.0,0.326654]
[1644237326220,0.04030169,42666.0,42665.0,0.047]
[1644237326221,0.04,42666.0,42665.0,0.047]
[1644237326621,0.035,42666.0,42665.0,0.047]
[1644237326822,0.085,42666.0,42665.0,0.047]
[1644237327024,0.085,42666.0,42665.0,0.347]
[1644237327025,0.035,42666.0,42665.0,0.347]
[1644237327422,0.035,42666.0,42665.0,0.047]
[1644237328024,0.035,42666.0,42665.0,0.308171]
[1644237328225,0.035,42666.0,42665.0,0.65162953]
[1644237328423,0.035,42666.0,42665.0,1.37828353]
[1644237332180,0.035,42666.0,42665.0,1.27828353]
[1644237332431,0.035,42666.0,42665.0,1.50828353]
[1644237332627,0.035,42666.0,42665.0,1.60828353]
[1644237333629,0.035,42666.0,42665.0,1.50828353]
[1644237333929,0.00096173,42668.0,42666.0,0.75]
[1644237334130,0.01030169,42669.0,42667.0,0.432269]
[1644237334329,0.01030169,42669.0,42667.0,0.582269]
[1644237334330,0.00021621,42668.0,42667.0,0.582269]
[1644237335331,0.01,42669.0,42667.0,0.882269]
[1644237335532,0.01,42669.0,42668.0,0.326654]
[1644237335830,0.01,42669.0,42668.0,0.373654]
[1644237336088,0.00021621,42670.0,42669.0,1.076654]
[1644237336275,0.00021621,42670.0,42669.0,1.273654]
[1644237336475,0.00030169,42674.0,42669.0,1.273654]
[1644237336676,0.05,42678.0,42669.0,1.273654]
[1644237336677,0.00030169,42675.0,42671.0,0.058607]
[1644237336875,0.00066057,42672.0,42671.0,0.385261]
[1644237337075,0.00066057,42672.0,42671.0,0.435261]
[1644237337675,0.00030169,42675.0,42671.0,0.535261]
[1644237337875,0.35079457,42674.0,42672.0,0.27213915]
[1644237338077,0.00066055,42674.0,42673.0,0.326654]
[1644237338375,0.00066055,42674.0,42673.0,0.423654]
[1644237338775,0.00066055,42674.0,42673.0,0.66556309]
[1644237338978,0.35079457,42675.0,42674.0,0.326531]
[1644237339176,0.35079457,42675.0,42674.0,0.373531]
[1644237340026,0.40079457,42675.0,42674.0,0.326531]
[1644237340225,0.40079457,42675.0,42670.0,0.02177772]
[1644237340426,0.35079457,42673.0,42670.0,0.02177772]
[1644237340623,0.05,42671.0,42670.0,0.02177772]
[1644237341023,0.05,42671.0,42668.0,0.07817394]
[1644237341223,0.35079457,42673.0,42666.0,0.3]
[1644237341423,0.05,42671.0,42666.0,0.3]
[1644237341624,0.05,42671.0,42667.0,0.326531]
[1644237341824,0.05030169,42671.0,42667.0,0.326531]
[1644237342225,0.00030169,42671.0,42668.0,0.08614079]
[1644237342425,0.00096226,42672.0,42669.0,0.326531]
[1644237342628,0.35228498,42673.0,42669.0,0.326531]
[1644237342825,0.00066057,42672.0,42669.0,0.326531]
[1644237343227,0.00066057,42672.0,42667.0,0.02001293]
[1644237343229,0.05,42670.0,42667.0,0.02001293]
[1644237343678,0.35175683,42672.0,42667.0,0.02001293]
[1644237343680,0.00030169,42671.0,42667.0,0.02001293]
[1644237343883,0.35079457,42672.0,42669.0,0.23]
[1644237343884,0.00030169,42672.0,42669.0,0.23]
[1644237344079,0.00096227,42671.0,42670.0,0.326531]
[1644237344277,0.00066058,42671.0,42670.0,0.326531]
[1644237344880,0.00149041,42673.0,42670.0,0.68955678]
[1644237345082,0.00118872,42673.0,42670.0,0.68955678]
[1644237345682,0.00118872,42673.0,42670.0,0.74817078]
[1644237345879,0.00118872,42673.0,42670.0,0.626531]
[1644237346080,0.05,42671.0,42670.0,0.626531]
[1644237346478,0.05,42671.0,42670.0,0.88249167]
[1644237346878,0.05138362,42671.0,42670.0,0.88249167]
[1644237347325,0.05138362,42671.0,42670.0,0.96983079]
[1644237347524,0.05138362,42671.0,42670.0,1.02844279]
[1644237348324,0.05138362,42671.0,42670.0,0.96983079]
[1644237349726,0.3988,42687.0,42671.0,0.3]
[1644237349925,0.32431056,42686.0,42671.0,0.3]
[1644237350125,0.00066096,42673.0,42671.0,0.326531]
[1644237350326,0.00066096,42673.0,42672.0,0.24204976]
[1644237350527,0.00066096,42673.0,42672.0,0.56858076]
[1644237350825,0.00066096,42673.0,42672.0,0.7789536]
[1644237351100,0.12419942,42686.0,42682.0,0.117219]
[1644237351101,0.06558542,42686.0,42682.0,0.117219]
[1644237351279,0.06558542,42686.0,42683.0,0.117219]
[1644237353183,0.06558542,42686.0,42683.0,0.09334501]
[1644237353981,0.06558542,42686.0,42683.0,0.32334501]
[1644237354181,0.06558542,42686.0,42684.0,0.24514811]
[1644237354384,0.06558542,42686.0,42684.0,0.24095979]
[1644237354832,0.06558542,42686.0,42683.0,0.32334501]
[1644237355233,0.06558542,42686.0,42685.0,0.07156642]
[1644237355444,0.06558542,42686.0,42685.0,0.42156642]
[1644237355634,0.06558542,42686.0,42685.0,0.74809742]
[1644237355837,0.01,42689.0,42686.0,0.058595]
[1644237356034,0.01,42689.0,42688.0,0.24507]